bitfinex/quotes_ETHUSD_20250518
["timestamp","ask_amount","ask_price","bid_price","bid_amount"]
[1747608007233,6.03858206,2426.6,2426.0,25.61444272]
[1747608007449,10.15958397,2426.6,2426.1,4.87296225]
[1747608007763,10.15958397,2426.6,2426.1,8.95185847]
[1747608007976,6.84488206,2427.0,2426.2,0.67872182]
[1747608008150,4.12084983,2426.7,2426.2,4.80031706]
[1747608008354,6.84488206,2427.0,2426.2,4.80031706]
[1747608008355,6.84488206,2427.0,2426.3,10.554]
[1747608008545,4.12129584,2426.5,2426.4,0.12872182]
[1747608008946,4.12076979,2426.8,2426.4,0.12872182]
[1747608009145,4.12083039,2426.7,2426.4,0.12872182]
[1747608009353,4.12083039,2426.7,2426.5,0.22792914]
[1747608009867,4.12083039,2426.7,2426.5,0.35665096]
[1747608010073,4.12083039,2426.7,2426.5,0.22792914]
[1747608010777,4.17250205,2426.6,2426.5,0.22792914]
[1747608010943,4.95309233,2426.6,2426.5,0.22792914]
[1747608011137,4.95309233,2426.6,2426.5,10.78092914]
[1747608011343,4.12099233,2426.6,2426.5,10.553]
[1747608012077,10.15941245,2426.7,2426.0,14.833]
[1747608012078,4.12184163,2426.1,2426.0,14.833]
[1747608012239,4.12184163,2426.1,2426.0,25.61383401]
[1747608012561,4.12184163,2426.1,2426.0,25.74257562]
[1747608013156,4.12184163,2426.1,2426.0,25.61383401]
[1747608013351,4.12184163,2426.1,2426.0,25.386]
[1747608013570,6.03858206,2426.4,2426.0,27.95877046]
[1747608013741,6.03858206,2426.4,2426.2,4.12156113]
[1747608013938,6.03858206,2426.4,2426.2,0.55]
[1747608014264,4.12073845,2426.8,2426.3,4.25014054]
[1747608014452,6.03858206,2427.1,2426.4,0.55]
[1747608014653,4.12040228,2427.0,2426.6,0.7705]
[1747608014973,4.12040613,2427.0,2426.7,1.82799906]
[1747608015181,4.12040613,2427.0,2426.7,1.95672951]
[1747608015773,4.1203925,2427.0,2426.7,1.82799906]
[1747608015971,4.120258,2427.1,2426.8,0.12869761]
[1747608016185,4.120258,2427.1,2426.9,14.83]
[1747608016186,4.12040562,2427.0,2426.9,14.83]
[1747608016479,4.12040562,2427.0,2426.9,25.382]
[1747608018144,4.1201704,2427.1,2426.9,25.382]
[1747608018454,4.12031247,2427.1,2426.9,25.382]
[1747608019347,4.11957464,2427.5,2427.1,0.8059]
[1747608019548,4.11940656,2427.6,2427.1,0.8059]
[1747608019793,0.8189,2428.2,2427.2,0.54761092]
[1747608019962,4.11946921,2427.5,2427.2,0.54761092]
[1747608020287,4.11932704,2427.6,2427.2,0.54761092]
[1747608020526,4.11948532,2427.5,2427.2,0.54761092]
[1747608020672,14.60579463,2428.5,2427.2,0.54761092]
[1747608020673,0.8087,2429.1,2427.7,0.7813]
[1747608021003,4.1169437,2429.0,2428.2,0.7813]
[1747608021293,0.8087,2429.1,2428.2,0.7813]
[1747608021294,4.11754265,2428.7,2428.3,21.034]
[1747608021595,0.8087,2429.1,2428.3,21.034]
[1747608021596,0.8087,2429.1,2428.4,10.55]
[1747608021747,0.8087,2429.1,2427.8,15.05561173]
[1747608021748,8.51081732,2429.1,2427.9,0.8131]
[1747608021947,4.11837547,2428.2,2428.0,10.55]
[1747608022148,4.11861614,2428.0,2427.9,0.8131]
[1747608022344,4.1182445,2428.3,2427.9,21.8421]
[1747608022549,4.11776816,2428.5,2427.9,25.50921]
[1747608022795,4.11843499,2428.2,2427.9,4.48021]
[1747608023010,4.87604554,2428.7,2428.0,10.55]
[1747608023279,4.11821394,2428.3,2427.9,0.8131]
[1747608023456,0.7586,2428.7,2428.1,10.55]
[1747608023662,4.11822618,2428.3,2428.1,10.55]
[1747608023862,4.11787222,2428.5,2428.2,2.1026]
[1747608025055,4.11802576,2428.4,2428.3,10.548]
[1747608025260,4.11802576,2428.4,2428.2,2.1026]
[1747608025444,4.11802576,2428.4,2427.9,4.93188283]
[1747608025652,4.11802576,2428.4,2428.0,21.565]
[1747608025996,4.11785013,2428.5,2428.0,25.68357363]
[1747608026158,4.11785013,2428.5,2428.0,21.565]
[1747608026356,4.1176135,2428.6,2428.1,4.11840987]
[1747608026566,4.1176135,2428.6,2428.2,2.56834099]
[1747608026774,4.11711332,2428.9,2428.2,2.56834099]
[1747608027106,12.11793773,2428.4,2428.3,10.548]
[1747608027397,4.11878578,2427.9,2427.8,14.829]
[1747608027577,4.11878578,2427.9,2427.8,25.376]
[1747608029567,4.11878578,2427.9,2427.8,14.829]
[1747608029868,4.11878578,2427.9,2427.8,25.284]
[1747608030599,4.11878578,2427.9,2427.8,14.829]
[1747608030804,4.90728578,2427.9,2427.8,25.283]
[1747608032175,4.11878578,2427.9,2427.8,25.283]
[1747608033368,4.1185244,2428.1,2427.8,26.64507806]
[1747608033573,6.03858206,2428.4,2427.8,26.64507806]
[1747608033574,4.11861695,2428.0,2427.8,26.64507806]
[1747608033798,4.11878578,2427.9,2427.8,14.829]
[1747608033971,4.11878578,2427.9,2427.8,25.283]
[1747608034588,4.11878578,2427.9,2427.8,14.829]
[1747608034776,12.17027552,2427.9,2427.8,25.283]
[1747608034976,12.11878578,2427.9,2427.8,25.283]
[1747608036669,12.43409709,2427.9,2427.8,25.283]
[1747608038106,12.11878578,2427.9,2427.8,25.283]
[1747608038909,12.11878578,2427.9,2427.8,25.284]
[1747608039409,4.11878578,2427.9,2427.8,25.284]
[1747608040913,12.11878578,2427.9,2427.8,25.284]
[1747608041906,4.11878578,2427.9,2427.8,27.27565795]
[1747608042112,4.11878578,2427.9,2427.8,25.284]
[1747608042897,4.11868282,2428.0,2427.8,25.284]
[1747608043081,4.11878578,2427.9,2427.8,25.284]
[1747608043282,4.11878578,2427.9,2427.8,27.88966]
[1747608043580,4.11868223,2428.0,2427.8,27.88966]
[1747608043899,4.11878578,2427.9,2427.8,27.88966]
[1747608044521,4.11866313,2428.0,2427.8,27.88966]
[1747608045215,4.11793773,2428.4,2427.8,27.88966]
[1747608045415,10.92239761,2428.6,2427.9,3.20087768]
[1747608045580,4.11861614,2428.0,2427.9,3.20087768]
[1747608045923,6.80478206,2428.6,2427.9,10.454]
[1747608046227,0.7662,2428.9,2428.1,0.55]
[1747608046395,4.11762053,2428.6,2428.2,10.403]
[1747608046585,4.11781281,2428.5,2428.2,10.403]
[1747608046783,4.11764614,2428.6,2428.2,10.403]
[1747608047020,4.11764614,2428.6,2428.3,1.0953]
[1747608047190,4.11764614,2428.6,2428.4,10.454]
[1747608047923,4.1175198,2428.7,2428.4,10.454]
[1747608048423,4.1175198,2428.7,2428.5,0.7831]
[1747608048983,4.11733292,2428.8,2428.5,0.7831]
[1747608049291,4.11733292,2428.8,2428.6,1.12371]
[1747608049514,4.11733292,2428.8,2428.7,14.82]
[1747608050186,0.7662,2429.2,2428.7,14.82]
[1747608050492,0.3070197,2429.6,2428.8,15.05623993]
[1747608050718,0.3070197,2429.6,2429.3,0.55]
[1747608051032,0.3070197,2429.6,2429.4,10.453]
[1747608051244,4.11564338,2429.8,2429.4,10.453]
[1747608051657,12.90609254,2430.5,2429.1,0.8045]
[1747608051859,4.11641213,2429.3,2429.2,10.5805549]
[1747608052014,8.0,2430.0,2429.2,10.5805549]
[1747608052355,4.11641213,2429.3,2429.2,10.5805549]
[1747608052863,4.11630891,2429.4,2429.2,10.452]
[1747608053156,4.11522633,2430.0,2429.3,0.55]
[1747608053366,4.1160102,2429.6,2429.3,1.76482046]
[1747608053558,4.1153138,2430.0,2429.1,1.14620458]
[1747608053731,4.11637161,2429.4,2429.2,10.452]
[1747608053929,4.11622061,2429.5,2429.2,10.452]
[1747608054243,4.11622701,2429.5,2429.2,10.452]
[1747608054454,4.11616706,2429.5,2429.2,10.452]
[1747608054765,4.11595165,2429.6,2429.2,12.14279401]
[1747608055056,4.11621981,2429.5,2429.2,12.14279401]
[1747608055266,4.11636918,2429.4,2429.2,12.14279401]
[1747608055762,4.11539569,2429.9,2428.8,0.8049]
[1747608055943,4.11709004,2428.9,2428.7,15.16170458]
[1747608056142,4.11684459,2429.1,2428.8,10.45]
[1747608056339,4.11625151,2429.4,2429.0,1.3549]
[1747608056539,4.90331834,2430.3,2429.4,0.55]
[1747608056859,4.11514108,2430.1,2429.6,0.55]
[1747608057031,4.11514108,2430.1,2429.7,14.816]
[1747608057232,14.816,2432.4,2430.0,0.55]
[1747608057233,4.11387197,2430.8,2430.0,0.55]
[1747608057425,0.7598,2431.1,2430.1,20.817]
[1747608057662,4.11370274,2430.9,2429.9,0.7799]
[1747608057863,4.11522633,2430.0,2429.9,0.7799]
[1747608058026,4.11431508,2430.6,2429.7,25.181]
[1747608058027,4.11548612,2429.9,2429.7,25.181]
[1747608058230,4.11548612,2429.9,2429.8,10.45]
[1747608058867,4.11556506,2429.8,2429.7,14.816]
[1747608059668,4.11556506,2429.8,2429.7,25.178]
[1747608060067,7.64804649,2430.6,2429.7,25.178]
[1747608060068,4.11370274,2430.9,2429.9,0.55]
[1747608060367,4.11497132,2430.2,2429.9,0.55]
[1747608060666,4.11539569,2429.9,2429.8,0.7546]
[1747608060868,4.11539569,2429.9,2429.8,10.36]
[1747608061068,4.11539569,2429.9,2429.7,14.816]
[1747608061069,12.86884364,2430.6,2429.7,14.816]
[1747608061259,4.11496214,2430.2,2429.8,10.91]
[1747608061573,4.11437975,2430.5,2429.9,10.36]
[1747608061786,4.11522633,2430.0,2429.9,10.36]
[1747608061962,4.11517499,2430.1,2429.9,10.36]
[1747608062140,4.11522633,2430.0,2429.9,10.36]
[1747608062470,4.11556506,2429.8,2429.7,25.168]
[1747608062634,4.11556506,2429.8,2429.7,14.816]
[1747608062838,4.11556506,2429.8,2429.7,25.176]
[1747608063671,4.11556506,2429.8,2429.7,14.816]
[1747608063835,4.11556506,2429.8,2429.7,25.175]
[1747608064333,4.11527704,2430.0,2429.7,25.175]
[1747608064653,4.11555839,2429.9,2429.7,25.175]
[1747608064851,4.11556506,2429.8,2429.7,25.175]
[1747608066070,4.11545412,2429.9,2429.7,25.175]
[1747608066560,4.11556506,2429.8,2429.7,25.175]
[1747608066878,0.7674,2431.1,2430.0,0.55]
[1747608067170,4.11451942,2430.5,2430.2,0.55]
[1747608067468,4.11451188,2430.5,2430.3,10.358]
[1747608067657,4.11370274,2430.9,2430.3,10.358]
[1747608067863,4.11454904,2430.4,2430.3,10.358]
[1747608069383,4.1136693,2431.0,2430.3,10.358]
[1747608069592,4.11447441,2430.5,2430.3,10.358]
[1747608069794,4.11447441,2430.5,2430.4,2.0695]
[1747608070292,0.7674,2431.1,2430.4,2.0695]
[1747608070495,0.8077,2431.3,2430.1,0.8077]
[1747608070696,0.8077,2430.4,2429.7,18.1412]
[1747608070862,4.11487792,2430.3,2429.9,0.55]
[1747608071264,4.11497112,2430.2,2429.9,0.55]
[1747608071480,4.11497112,2430.2,2430.0,1.0907]
[1747608071983,4.11479225,2430.3,2430.0,1.0907]
[1747608072690,4.11447262,2430.5,2430.1,11.6873]
[1747608072905,4.11462192,2430.4,2430.1,11.6873]
[1747608073108,4.11471834,2430.3,2430.2,11.6348]
[1747608073602,4.11429295,2430.6,2430.2,12.1848]
[1747608074101,4.11409493,2430.7,2430.3,0.55]
[1747608074273,4.11412348,2430.7,2430.3,0.55]
[1747608074474,4.11440144,2430.5,2430.4,20.675]
[1747608074700,4.11410588,2430.7,2430.4,22.7975]
[1747608074863,4.11427343,2430.6,2430.4,22.7975]
[1747608075062,4.11433082,2430.6,2430.4,22.7975]
[1747608076699,4.11361684,2431.0,2430.4,22.7975]
[1747608076917,4.87067197,2430.8,2429.8,0.34170458]
[1747608077066,0.05142223,2430.9,2429.9,10.69770458]
[1747608077067,4.11522633,2430.0,2429.9,10.69770458]
[1747608079977,4.11522633,2430.0,2429.9,10.356]
[1747608081016,0.8048,2430.6,2430.0,0.55]
[1747608081313,4.11480181,2430.3,2430.1,0.1285216]
[1747608081604,4.11480181,2430.3,2430.0,0.55]
[1747608081978,4.11437975,2430.5,2430.0,0.55]
[1747608081979,4.11467084,2430.4,2430.0,0.55]
[1747608082179,4.11467084,2430.4,2430.1,1.568793]
[1747608082576,4.11404122,2430.7,2430.2,0.1285144]
[1747608082781,4.11471834,2430.3,2430.2,0.1285144]
[1747608082978,4.11471834,2430.3,2430.1,1.568793]
[1747608082979,4.11488766,2430.2,2430.1,1.568793]
[1747608083170,4.11522633,2430.0,2429.9,0.34170458]
[1747608083367,4.11522633,2430.0,2429.9,10.69870458]
[1747608084005,12.92682633,2430.0,2429.9,0.34170458]
[1747608084505,12.92682633,2430.0,2429.7,0.45515666]
[1747608084506,12.89186506,2429.8,2429.7,0.45515666]
[1747608084711,4.11624269,2429.4,2429.3,10.357]
[1747608084907,4.11624269,2429.4,2429.1,1.02006839]
[1747608084908,4.11658159,2429.2,2429.1,1.02006839]
[1747608085208,12.11658159,2429.2,2429.1,1.02006839]
[1747608085901,4.11692054,2429.0,2428.9,25.165]
[1747608086705,1.0913024,2429.0,2428.2,14.808]
[1747608086907,4.11793773,2428.4,2428.3,10.357]
[1747608089201,4.95073773,2428.4,2428.3,10.357]
[1747608089512,15.23273773,2428.4,2428.3,10.357]
[1747608090414,4.95073773,2428.4,2428.3,10.357]
[1747608090646,15.22973773,2428.4,2428.3,10.357]
[1747608091116,15.22973773,2428.4,2427.5,14.813]
[1747608091117,23.22973773,2428.4,2427.5,14.813]
[1747608091277,4.11929477,2427.6,2427.5,25.096]
[1747608091477,4.17078701,2427.6,2427.5,25.096]
[1747608091678,4.11929477,2427.6,2427.5,25.096]
[1747608094322,14.39229477,2427.6,2427.5,25.096]
[1747608096236,0.8146,2427.5,2426.6,0.7853]
[1747608096526,10.268,2427.4,2426.7,10.288]
[1747608096687,4.12048292,2426.9,2426.8,10.288]
[1747608097383,12.12048292,2426.9,2426.8,10.288]
[1747608097613,4.12048292,2426.9,2426.8,10.288]
[1747608097796,0.8146,2427.8,2426.9,0.7853]
[1747608098003,4.11951405,2427.5,2426.9,4.90569641]
[1747608098220,4.11951405,2427.5,2427.0,2.06936964]
[1747608098430,4.11956982,2427.5,2427.0,2.06936964]
[1747608098813,6.85318206,2428.1,2427.0,2.06936964]
[1747608099128,14.38028545,2428.2,2427.4,0.55]
[1747608099290,4.11878639,2427.9,2427.5,25.107]
[1747608099631,4.11929477,2427.6,2427.5,25.107]
[1747608100194,4.11929477,2427.6,2427.5,10.288]
[1747608100414,14.38029477,2427.6,2427.5,10.288]
[1747608100651,4.11920201,2427.7,2427.5,10.288]
[1747608100944,11.0914,2428.5,2427.6,0.55]
[1747608101234,11.0914,2428.5,2427.8,0.55]
[1747608101235,0.8324,2428.5,2427.8,0.55]
[1747608101417,16.14858206,2428.9,2428.0,4.11848592]
[1747608101418,4.11772631,2428.6,2428.0,4.11848592]
[1747608101721,4.11789745,2428.5,2428.1,10.289]
[1747608101921,4.11725955,2428.8,2428.2,1.0289]
[1747608102124,4.11773209,2428.6,2428.2,1.0289]
[1747608102933,4.11803389,2428.4,2428.2,1.0289]
[1747608103092,4.11768953,2428.6,2428.2,1.0289]
[1747608104427,10.252,2429.0,2428.2,1.0289]
[1747608104727,4.11827691,2428.2,2428.1,10.289]
[1747608106388,6.03858206,2428.8,2428.1,10.289]
[1747608106587,4.11791964,2428.5,2428.1,10.289]
[1747608106792,4.11822394,2428.3,2428.1,10.289]
[1747608107008,4.11822394,2428.3,2428.1,11.39651]
[1747608107508,4.11827691,2428.2,2428.1,10.289]
[1747608108110,0.8028,2428.9,2428.1,10.289]
[1747608108308,4.11785073,2428.5,2428.1,10.289]
[1747608108852,2.07139984,2430.8,2428.3,0.8254]
[1747608108853,4.11769366,2428.6,2428.3,0.8254]
[1747608109035,4.11793773,2428.4,2428.3,2.48684]
[1747608109213,11.0652,2429.5,2428.3,2.48684]
[1747608109423,4.11725435,2428.9,2428.3,2.48684]
[1747608109617,4.11717482,2428.9,2428.4,4.667931]
[1747608109936,10.15523719,2429.2,2428.5,0.6604771]
[1747608110128,6.03858206,2429.2,2428.6,25.107]
[1747608110328,4.11674384,2429.2,2428.7,1.3754]
[1747608110730,4.11694641,2429.0,2428.7,1.3754]
[1747608111130,4.11725955,2428.8,2428.7,1.3754]
[1747608111350,4.11698934,2429.0,2428.7,1.3754]
[1747608111520,4.11698934,2429.0,2428.8,2.64824]
[1747608112434,4.11667459,2429.2,2428.9,0.55]
[1747608112931,0.8272,2429.7,2428.9,0.55]
[1747608113158,6.03858206,2429.8,2428.9,0.55]
[1747608113454,4.11573936,2429.7,2429.1,4.66658258]
[1747608113656,4.11598915,2429.6,2429.2,10.83519826]
[1747608114222,4.11583214,2429.7,2429.3,0.55]
[1747608114419,0.8272,2430.3,2429.5,0.55]
[1747608114757,4.11546381,2429.9,2429.7,0.55]
[1747608114955,4.11546381,2429.9,2429.8,10.285]
[1747608115875,4.11468494,2430.4,2429.9,0.55]
[1747608116180,4.11338492,2431.1,2429.9,0.55]
[1747608116181,4.11413274,2430.7,2430.1,4.66493143]
[1747608116465,4.11413274,2430.7,2430.1,4.66499235]
[1747608116823,4.11421443,2430.6,2430.1,4.66499235]
[1747608117067,4.11409632,2430.7,2430.3,0.55]
[1747608117221,4.11422783,2430.6,2430.5,0.7976]
[1747608117561,4.11422783,2430.6,2430.5,15.6096]
[1747608117738,8.0,2431.1,2430.5,15.6096]
[1747608117936,0.7937,2431.3,2430.6,0.55]
[1747608118191,0.7937,2431.7,2430.6,0.55]
[1747608118339,4.11251418,2431.7,2431.2,0.55]
[1747608118541,4.11264406,2431.6,2431.3,10.283]
[1747608118740,4.11264406,2431.6,2431.4,14.812]
[1747608118941,4.11268764,2431.5,2431.4,14.812]
[1747608119148,4.11201118,2431.9,2431.4,15.11381414]
[1747608119367,4.11267436,2431.6,2431.4,14.812]
[1747608119783,4.11268764,2431.5,2431.4,14.812]
[1747608119946,4.11258976,2431.6,2431.4,14.812]
[1747608120287,0.3062066,2431.8,2431.7,0.7952]
[1747608120452,0.3062066,2431.8,2431.7,1.3452]
[1747608120641,0.3062066,2431.8,2431.7,5.45754938]
[1747608120841,0.8175,2433.0,2431.7,5.45754938]
[1747608120842,4.11114416,2432.5,2432.0,0.55]
[1747608121194,0.8175,2433.0,2432.0,0.55]
[1747608121489,4.16170901,2432.9,2432.1,10.205]
[1747608121648,4.11150398,2432.2,2432.1,10.205]
[1747608121841,4.11218027,2431.8,2431.7,1.3452]
[1747608122078,4.11218027,2431.8,2431.7,11.0002]
[1747608122280,4.11218027,2431.8,2431.7,10.205]
[1747608122793,4.11268764,2431.5,2431.4,14.812]
[1747608122995,4.11268764,2431.5,2431.4,25.017]
[1747608124086,4.11268764,2431.5,2431.4,14.812]
[1747608124288,4.11268764,2431.5,2431.4,25.015]
[1747608124603,8.0,2432.0,2431.4,25.015]
[1747608124753,4.11261601,2431.6,2431.4,27.5165]
[1747608124953,4.11261601,2431.6,2431.5,0.7757]
[1747608125188,4.11268764,2431.5,2431.4,14.812]
[1747608125494,4.11268764,2431.5,2431.4,25.015]
[1747608125654,10.189,2432.2,2431.4,25.015]
[1747608125993,4.11268764,2431.5,2431.4,25.015]
[1747608126659,4.11268764,2431.5,2431.4,14.812]
[1747608126867,4.11268764,2431.5,2431.4,25.014]
[1747608130595,12.11268764,2431.5,2431.4,25.014]
[1747608130769,12.11268764,2431.5,2430.7,10.18]
[1747608130770,4.11421048,2430.6,2430.5,15.566]
[1747608130975,4.11421048,2430.6,2430.5,25.767]
[1747608131381,6.03858206,2432.2,2430.5,15.87154356]
[1747608131700,3.76271371,2432.6,2430.5,15.87154356]
[1747608131701,4.9376886,2432.1,2431.3,0.7814]
[1747608131999,4.11246539,2431.7,2431.4,25.003]
[1747608132290,4.11213586,2431.9,2431.5,0.55]
[1747608132489,4.11226891,2431.8,2431.5,0.55]
[1747608132698,0.783,2432.4,2431.5,0.55]
[1747608133007,4.89265746,2433.3,2432.3,4.1112464]
[1747608133225,4.89268315,2433.3,2432.4,26.04226464]
[1747608133361,4.10924394,2433.6,2432.4,26.04226464]
[1747608133362,4.11024781,2433.0,2432.6,0.55]
[1747608133558,4.11033169,2432.9,2432.6,0.55]
[1747608134003,4.10846343,2434.0,2432.8,4.11048997]
[1747608134180,3.76271371,2434.8,2432.8,4.11048997]
[1747608134181,0.783,2435.0,2433.5,0.55]
[1747608134374,0.783,2435.0,2433.9,0.55]
[1747608134706,0.783,2435.0,2434.0,10.201]
[1747608134707,4.10829464,2434.1,2434.0,10.201]
[1747608134859,4.10896988,2433.7,2433.6,14.802]
[1747608135063,4.10896988,2433.7,2433.6,25.003]
[1747608135294,12.10896988,2433.7,2433.6,25.003]
[1747608135493,4.10896988,2433.7,2433.6,25.003]
[1747608135676,4.1080026,2434.3,2433.6,27.36524712]
[1747608135877,4.10896988,2433.7,2433.6,27.36524712]
[1747608136199,4.10858808,2434.0,2433.6,27.36524712]
[1747608136370,10.9378,2434.5,2433.7,0.55]
[1747608136706,4.10863223,2433.9,2433.8,2.79152471]
[1747608136901,4.10521338,2436.0,2434.5,0.55]
[1747608137101,0.05133142,2435.9,2434.6,14.796]
[1747608137306,4.10728221,2434.7,2434.6,16.2756]
[1747608137466,4.10559592,2435.7,2434.6,24.993]
[1747608137666,10.157,2435.6,2434.6,24.993]
[1747608137902,8.0,2435.6,2434.6,24.993]
[1747608138199,4.10706865,2434.9,2434.7,0.55]
[1747608138400,4.10700055,2434.9,2434.7,0.55]
[1747608138575,8.0,2435.4,2434.8,2.5543]
[1747608138784,4.10728221,2434.7,2434.6,24.993]
[1747608138974,4.10728221,2434.7,2434.6,24.989]
[1747608139177,12.10728221,2434.7,2434.6,24.989]
[1747608139470,23.06198221,2434.7,2434.6,24.989]
[1747608139899,4.10576449,2435.6,2434.6,10.193]
[1747608140075,4.10595297,2435.5,2434.7,0.55]
[1747608140279,4.10640385,2435.3,2434.9,0.55]
[1747608140481,4.10635505,2435.3,2434.9,0.55]
[1747608140702,4.10686881,2435.0,2434.8,14.791]
[1747608140897,4.10686881,2435.0,2434.9,10.193]
[1747608141108,4.10694484,2434.9,2434.8,14.791]
[1747608141304,4.10684672,2435.0,2434.8,24.981]
[1747608141608,10.147,2436.2,2434.9,0.55]
[1747608141902,10.147,2436.2,2434.8,27.4791]
[1747608141903,4.10564041,2435.7,2435.1,0.55]
[1747608142479,4.10574552,2435.7,2435.1,0.55]
[1747608142681,4.10574552,2435.7,2435.1,4.6566039]
[1747608142875,4.10561865,2435.7,2435.1,4.6565513]
[1747608143070,4.1049218,2436.1,2435.2,0.54438513]
[1747608143372,0.7986,2437.5,2435.6,4.65568983]
[1747608143570,4.10368778,2436.9,2435.8,4.65529141]
[1747608143788,4.10419008,2436.6,2436.0,4.65499557]
[1747608143983,4.10425821,2436.5,2436.1,2.57952956]
[1747608144184,4.10388533,2436.8,2436.1,2.57952956]
[1747608144541,4.10449682,2436.4,2436.2,0.55]
[1747608144710,4.10442122,2436.4,2436.2,0.55]
[1747608145001,4.10429068,2436.5,2436.2,0.55]
[1747608145298,10.136,2437.3,2436.2,0.86295296]
[1747608145503,4.10410959,2436.6,2436.2,0.86295296]
[1747608145715,4.10357421,2436.9,2435.9,0.8093]
[1747608145920,0.7986,2437.5,2436.0,10.187]
[1747608146074,0.7697,2437.5,2436.0,10.187]
[1747608146271,0.7697,2437.5,2436.1,10.134]
[1747608146508,4.10333183,2437.1,2436.4,0.55]
[1747608146695,4.10407945,2436.6,2436.5,10.187]
[1747608147028,4.10407945,2436.6,2436.5,24.969]
[1747608147305,12.10407945,2436.6,2436.5,24.969]
[1747608147682,4.1049218,2436.1,2435.7,14.777]
[1747608147885,4.10424789,2436.5,2435.8,10.184]
[1747608148206,4.1051026,2436.0,2435.8,10.184]
[1747608148595,4.1052178,2436.0,2435.8,10.184]
[1747608148797,4.10505004,2436.1,2435.9,0.55]
[1747608148978,4.10525883,2435.9,2435.8,10.734]
[1747608149174,4.10525883,2435.9,2435.8,10.184]
[1747608152215,4.10391102,2436.7,2435.8,12.6801]
[1747608152216,4.10495409,2436.1,2435.8,12.6801]
[1747608152817,4.10525883,2435.9,2435.8,12.6801]
[1747608152980,4.10525883,2435.9,2435.8,10.184]
[1747608153721,4.10542737,2435.8,2435.5,0.7928]
[1747608153924,4.10559592,2435.7,2435.6,10.123]
[1747608155113,4.1057985,2435.6,2435.3,14.774]
[1747608155290,4.10556029,2435.8,2435.4,12.6121]
[1747608155496,0.02888948,2437.7,2436.1,0.55]
[1747608155684,4.13126553,2437.7,2437.0,4.10330161]
[1747608155885,4.10287241,2437.4,2437.2,0.7707]
[1747608156086,4.10287241,2437.4,2437.3,14.774]
[1747608156317,4.31234961,2437.4,2437.3,10.123]
[1747608156618,0.7861,2437.4,2436.4,10.123]
[1747608156779,4.10421727,2436.6,2436.5,10.123]
[1747608156980,0.7861,2437.4,2436.5,10.123]
[1747608157517,0.7861,2437.4,2436.9,0.7707]
[1747608157518,4.10289563,2437.4,2436.9,0.7707]
[1747608157699,4.10279145,2437.4,2437.0,10.123]
[1747608157889,4.10279145,2437.4,2437.0,12.22387]
[1747608158088,4.10292007,2437.3,2437.1,10.123]
[1747608158285,4.10269182,2437.5,2436.9,0.7707]
[1747608158286,4.10306909,2437.2,2436.9,0.7707]
[1747608158510,4.10323745,2437.1,2437.0,24.897]
[1747608158717,4.10314341,2437.2,2437.0,24.897]
[1747608158915,4.10323745,2437.1,2437.0,24.897]
[1747608159121,4.10317587,2437.2,2437.0,24.897]
[1747608159316,4.10305388,2437.3,2437.0,24.897]
[1747608159516,4.10316491,2437.2,2437.0,24.897]
[1747608159723,0.7861,2437.6,2437.0,24.897]
[1747608159908,4.10300619,2437.3,2437.0,24.897]
[1747608160109,4.10279665,2437.4,2437.0,24.897]
[1747608160313,0.02888948,2437.7,2437.0,27.87414138]
[1747608160512,4.10323745,2437.1,2437.0,24.897]
[1747608161089,4.10313847,2437.2,2437.0,24.897]
[1747608161327,0.02888948,2437.7,2437.1,0.55]
[1747608161491,0.02888948,2437.7,2437.1,10.11]
[1747608161693,4.10290253,2437.3,2437.0,14.774]
[1747608161910,4.10323745,2437.1,2437.0,14.774]
[1747608162223,4.10323745,2437.1,2437.0,24.893]
[1747608162421,0.02888948,2437.7,2437.0,24.893]
[1747608162797,4.10315844,2437.2,2437.0,24.893]
[1747608162989,4.13121559,2437.7,2437.0,24.893]
[1747608162990,0.02888948,2437.7,2437.1,10.9169]
[1747608163525,4.10306909,2437.2,2437.1,0.8099]
[1747608163705,4.10323745,2437.1,2437.0,14.774]
[1747608163899,4.10323745,2437.1,2437.0,24.893]
[1747608165093,4.10306593,2437.3,2437.0,24.893]
[1747608165289,4.10283624,2437.4,2437.0,27.3823]
[1747608165491,4.10260833,2437.5,2437.0,27.3823]
[1747608165724,4.10239579,2437.6,2437.0,27.3823]
[1747608165925,0.02888948,2437.7,2437.1,0.55]
[1747608166130,0.02888948,2437.7,2437.3,0.55]
[1747608166295,0.02888948,2437.7,2437.5,0.55]
[1747608166495,0.02888948,2437.7,2437.6,10.58327098]
[1747608166695,0.02888948,2437.7,2437.6,11.94967098]
[1747608166908,0.8042,2439.1,2437.9,0.55]
[1747608167127,0.8042,2439.1,2438.0,14.768]
[1747608167448,4.10131663,2438.3,2438.0,24.886]
[1747608167738,0.8042,2439.1,2438.2,0.7886]
[1747608167911,4.10093144,2438.5,2438.2,0.7886]
[1747608168112,4.1015208,2438.2,2438.0,14.768]
[1747608168317,4.1015208,2438.2,2437.6,1.34703537]
[1747608168318,4.1022275,2437.7,2437.6,0.33176439]
[1747608168518,4.1022275,2437.7,2437.6,10.44776439]
[1747608169106,0.7755,2438.3,2437.6,11.53773502]
[1747608169305,4.10215899,2437.8,2437.6,11.53773502]
[1747608169525,0.7755,2438.3,2437.6,11.53773502]
[1747608169526,4.10163374,2438.1,2437.6,11.53773502]
[1747608169920,4.1022275,2437.7,2437.6,10.44776439]
[1747608170930,4.1022275,2437.7,2437.6,0.33176439]
[1747608171241,4.8547275,2437.7,2437.6,0.33176439]
[1747608171938,4.1025641,2437.5,2437.3,10.116]
[1747608172242,4.10273241,2437.4,2437.3,10.116]
[1747608172938,4.10306909,2437.2,2437.1,14.765]
[1747608173511,4.88036909,2437.2,2437.1,24.88]
[1747608173709,4.10391102,2436.7,2436.6,0.33176439]
[1747608175438,4.93401102,2436.7,2436.6,10.44776439]
[1747608175816,4.93401102,2436.7,2436.6,10.116]